fUST/lending_fUST_20240919
["ID","MTS","AMOUNT","RATE_DAILY","PERIOD"]
[338575629,1726741862697,-500.0,0.0001726,2]
[338575630,1726741862707,-1233.33,0.0001726,2]
[338575631,1726741862717,-658.62,0.0001726,2]
[338575632,1726741862727,-484.86,0.0001726,2]
[338575633,1726741862738,-214.73504258,0.0001726,2]
[338575634,1726741862748,-671.94,0.0001726,2]
[338575635,1726741862758,-324.96272311,0.0001726,2]
[338575636,1726741862769,-500.0,0.0001726,2]
[338575637,1726741862779,-628.14,0.0001726,2]
[338575638,1726741862789,-500.0,0.0001726,2]
[338575639,1726741862799,-559.95,0.0001726,2]
[338575640,1726741862808,-151.0,0.0001726,2]
[338575641,1726741862818,-500.0,0.0001726,2]
[338575642,1726741862828,-500.0,0.0001726,2]
[338575643,1726741862838,-500.0,0.0001726,2]
[338575644,1726741862848,-500.0,0.0001726,2]
[338575645,1726741862858,-841.34,0.0001726,2]
[338575646,1726741862867,-500.0,0.0001726,2]
[338575647,1726741862877,-500.0,0.0001726,2]
[338575648,1726741862886,-500.0,0.0001726,2]
[338575649,1726741862895,-500.0,0.0001726,2]
[338575650,1726741862905,-500.0,0.0001726,2]
[338575651,1726741862916,-500.0,0.0001726,2]
[338575652,1726741862928,-801.89,0.0001726,2]
[338575653,1726741862938,-500.0,0.0001726,2]
[338575654,1726741862948,-1086.39,0.0001726,2]
[338575655,1726741862957,-737.84,0.0001726,2]
[338575656,1726741862967,-151.0,0.0001726,2]
[338575657,1726741862977,-726.59,0.0001726,2]
[338575658,1726741862986,-207.743638,0.0001726,2]
[338575659,1726741862996,-500.0,0.0001726,2]
[338575660,1726741863006,-500.0,0.0001726,2]
[338575661,1726741863015,-500.0,0.0001726,2]
[338575662,1726741863024,-151.0,0.0001726,2]
[338575663,1726741863035,-500.0,0.0001726,2]
[338575664,1726741863044,-500.0,0.0001726,2]
[338575665,1726741863054,-500.0,0.0001726,2]
[338575666,1726741863064,-151.0,0.0001726,2]
[338575667,1726741863075,-500.0,0.0001726,2]
[338575668,1726741863084,-500.0,0.0001726,2]
[338575669,1726741863094,-151.0,0.0001726,2]
[338575670,1726741863103,-840.56,0.0001726,2]
[338575671,1726741863113,-500.0,0.0001726,2]
[338575672,1726741863123,-535.21,0.0001726,2]
[338575673,1726741863133,-737.97,0.0001726,2]
[338575674,1726741863143,-500.0,0.0001726,2]
[338575675,1726741863152,-500.0,0.0001726,2]
[338575676,1726741863162,-500.0,0.0001726,2]
[338575677,1726741863172,-657.13,0.0001726,2]
[338575678,1726741863182,-1488.61,0.0001726,2]
[338575679,1726741863192,-672.03,0.0001726,2]
[338575680,1726741863202,-500.0,0.0001726,2]
[338575681,1726741863212,-500.0,0.0001726,2]
[338575682,1726741863222,-500.0,0.0001726,2]
[338575683,1726741863231,-500.0,0.0001726,2]
[338575684,1726741863241,-500.0,0.0001726,2]
[338575685,1726741863251,-1728.12,0.0001726,2]
[338575686,1726741863260,-227.25158115,0.0001726,2]
[338575687,1726741863270,-500.0,0.0001726,2]
[338575688,1726741863280,-677.57,0.0001726,2]
[338575689,1726741863289,-500.0,0.0001726,2]
[338575690,1726741863300,-500.0,0.0001726,2]
[338575691,1726741863313,-500.0,0.0001726,2]
[338575692,1726741863322,-500.0,0.0001726,2]
[338575693,1726741863331,-78.47650394,0.0001726,2]
[338575694,1726741863400,-421.52349606,0.0001726,2]
[338575695,1726741863410,-539.55,0.0001726,2]
[338575696,1726741863421,-185.58307709,0.0001726,2]
[338575697,1726741917949,288.01802955,0.00015481,2]
[338575704,1726742216629,976.733811,0.00013995,2]
[338575707,1726742226118,3642.8887773,0.00013995,2]
[338575708,1726742231307,250.0,0.00013995,2]
[338575711,1726742245759,1261.171725,0.00013995,2]
[338575712,1726742264707,190.508715,0.00013295,2]
[338575713,1726742358530,1053.2644015,0.00013989,2]
[338575716,1726742455906,4812.0704681,0.00013975,2]
[338575720,1726742494652,233.223095,0.00013989,2]
[338575723,1726742502767,24900.0,0.00013975,2]
[338575724,1726742521013,3000.0,0.00013982,2]
[338575731,1726742749141,-185.10114356,0.00014095,2]
[338575736,1726742831145,-184.85101915,0.00014095,2]
[338575737,1726742831802,190.508715,0.00013441,2]
[338575738,1726742950119,-5255.71950219,0.00014095,2]
[338575739,1726742950144,-488.366906,0.00014119,2]
[338575740,1726742950168,-250.0,0.00014168,2]
[338575741,1726742950189,-1032.6831732,0.0001424,2]
[338575742,1726742950212,-250.0,0.00014384,2]
[338575743,1726742950237,-250.0,0.00014423,2]
[338575744,1726742950263,-250.0,0.00014463,2]
[338575745,1726742950286,-250.0,0.00014502,2]
[338575746,1726742950308,-250.0,0.00014542,2]
[338575747,1726742950330,-250.0,0.00014581,2]
[338575748,1726742950352,-250.0,0.00014621,2]
[338575749,1726742950374,-250.0,0.0001466,2]
[338575750,1726742950396,-250.0,0.00014699,2]
[338575751,1726742950416,-300.0,0.00014705,2]
[338575752,1726742950438,-300.0,0.00014705,2]
[338575753,1726742950460,-500.0,0.0001471,2]
[338575754,1726742950481,-250.0,0.00014739,2]
[338575755,1726742950503,-250.0,0.00014778,2]
[338575756,1726742951103,-250.0,0.00014818,2]
[338575757,1726742951126,-250.0,0.00014857,2]
[338575758,1726742951149,-250.0,0.00014897,2]
[338575759,1726742951173,-250.0,0.00014936,2]
[338575760,1726742951198,-250.0,0.00014976,2]
[338575761,1726742951222,-42.94302039,0.00015015,2]
[338575762,1726742961827,160.43222056,0.00014019,2]
[338575763,1726742965093,-207.05697961,0.00015015,2]
[338575764,1726742965116,-250.0,0.00015055,2]
[338575765,1726742965138,-250.0,0.00015094,2]
[338575766,1726742965160,-250.0,0.00015133,2]
[338575767,1726742965182,-186.19871159,0.00015188,2]
[338575768,1726742969196,-18.82698242,0.00015188,2]
[338575769,1726742969218,-374.4035,0.00015288,2]
[338575770,1726742969239,-374.4035,0.00015292,2]
[338575771,1726742969261,-374.4035,0.00015296,2]
[338575772,1726742969435,-279.78567312,0.000153,2]
[338575773,1726742971106,-94.61782688,0.000153,2]
[338575774,1726742971129,-374.4035,0.00015304,2]
[338575775,1726742971151,-374.4035,0.00015308,2]
[338575776,1726742971173,-374.4035,0.00015312,2]
[338575777,1726742971195,-374.4035,0.00015316,2]
[338575778,1726742971217,-374.4035,0.0001532,2]
[338575779,1726742971239,-374.4035,0.00015324,2]
[338575780,1726742971262,-374.4035,0.00015328,2]
[338575781,1726742971287,-374.4035,0.00015332,2]
[338575782,1726742971308,-374.4035,0.00015336,2]
[338575783,1726742971330,-374.4035,0.0001534,2]
[338575784,1726742971352,-374.4035,0.00015345,2]
[338575785,1726742971375,-374.4035,0.00015349,2]
[338575786,1726742971399,-374.4035,0.00015353,2]
[338575787,1726742971421,-374.4035,0.00015357,2]
[338575788,1726742971443,-374.4035,0.00015361,2]
[338575789,1726742971464,-374.4035,0.00015365,2]
[338575790,1726742971485,-420.0,0.00016099,2]
[338575791,1726742971507,-420.0,0.00016175,2]
[338575792,1726742971529,-190.71746324,0.00016221,2]
[338575793,1726742971551,-1909.30386034,0.00016221,2]
[338575801,1726743028642,500.0,0.0001469,2]
[338575912,1726743038152,-8419.3376119,0.00016221,2]
[338575914,1726743038162,-190.71746324,0.0001627,2]
[338575916,1726743038173,-300.0,0.00016299,2]
[338575918,1726743038182,-300.0,0.00016299,2]
[338575920,1726743038192,-5000.0,0.000163,2]
[338575922,1726743038201,-1006.00106691,0.00016305,2]
[338575924,1726743038211,-1006.00106689,0.00016313,2]
[338575926,1726743038220,-999.89702424,0.00016317,2]
[338575928,1726743038230,-190.71746324,0.00016318,2]
[338575930,1726743038239,-1000.0,0.00016318,2]
[338575932,1726743038249,-68843.55890311,0.00016318,2]
[338575934,1726743038259,-1006.00106689,0.00016322,2]
[338575936,1726743038269,-1006.00106689,0.0001633,2]
[338575938,1726743038278,-979.91001316,0.00016337,2]
[338575940,1726743038289,-1006.00106689,0.00016338,2]
[338575942,1726743038298,-55090.0715812,0.00016405,2]
[338575944,1726743038308,-500.0,0.00016405,2]
[338575946,1726743038317,-500.0,0.00016405,2]
[338575948,1726743038326,-500.0,0.00016405,2]
[338575950,1726743038336,-343.90190201,0.00016405,2]
[338575952,1726743038345,-167.56262647,0.00016405,2]
[338575954,1726743038354,-500.0,0.00016405,2]
[338575956,1726743038364,-500.0,0.00016405,2]
[338575958,1726743038373,-500.0,0.00016405,2]
[338575960,1726743038383,-500.0,0.00016405,2]
[338575961,1726743038392,-500.0,0.00016405,2]
[338575963,1726743038401,-500.0,0.00016405,2]
[338575965,1726743038411,-500.0,0.00016405,2]
[338575967,1726743038420,-500.0,0.00016405,2]
[338575969,1726743038429,-500.0,0.00016405,2]
[338575971,1726743038440,-500.0,0.00016405,2]
[338575973,1726743038449,-500.0,0.00016405,2]
[338575975,1726743038459,-500.0,0.00016405,2]
[338575977,1726743038468,-500.0,0.00016405,2]
[338575979,1726743038478,-500.0,0.00016405,2]
[338575981,1726743038488,-500.0,0.00016405,2]
[338575983,1726743038498,-500.0,0.00016405,2]
[338575985,1726743038507,-500.0,0.00016405,2]
[338575987,1726743038516,-530.20852203,0.00016405,2]
[338575988,1726743038525,-500.0,0.00016405,2]
[338575990,1726743038535,-500.0,0.00016405,2]
[338575992,1726743038544,-500.0,0.00016405,2]
[338575994,1726743038553,-500.0,0.00016405,2]
[338575996,1726743038564,-500.0,0.00016405,2]
[338575998,1726743038575,-500.0,0.00016405,2]
[338576000,1726743038584,-500.0,0.00016405,2]
[338576002,1726743038593,-500.0,0.00016405,2]
[338576004,1726743038603,-500.0,0.00016405,2]
[338576006,1726743038612,-500.0,0.00016405,2]
[338576008,1726743038621,-500.0,0.00016405,2]
[338576010,1726743038631,-500.0,0.00016405,2]
[338576012,1726743038640,-500.0,0.00016405,2]
[338576014,1726743038649,-500.0,0.00016405,2]
[338576016,1726743038658,-500.0,0.00016405,2]
[338576018,1726743038668,-500.0,0.00016405,2]
[338576020,1726743038678,-500.0,0.00016405,2]
[338576022,1726743038692,-500.0,0.00016405,2]
[338576023,1726743038701,-500.0,0.00016405,2]
[338576025,1726743038710,-500.0,0.00016405,2]
[338576027,1726743038720,-403.02085221,0.00016405,2]
[338576029,1726743038729,-500.0,0.00016405,2]
[338576031,1726743038738,-500.0,0.00016405,2]
[338576033,1726743038747,-500.0,0.00016405,2]
[338576035,1726743038758,-500.0,0.00016405,2]
[338576037,1726743038768,-499.99999999,0.00016405,2]
[338576039,1726743038777,-165270.214744,0.00016406,2]
[338576041,1726743038786,-110180.143162,0.00016418,2]
[338576043,1726743038795,-500.0,0.00016437,2]
[338576045,1726743038805,-500.0,0.00016437,2]
[338576047,1726743038822,-503.50306813,0.00016437,2]
[338576049,1726743038832,-500.0,0.00016437,2]
[338576051,1726743038841,-264.14711236,0.00016437,2]
[338576052,1726743038850,-500.0,0.00016437,2]
[338576054,1726743038859,-500.0,0.00016437,2]
[338576056,1726743038868,-500.0,0.00016437,2]
[338576058,1726743038877,-272.15678396,0.00016437,2]
[338576060,1726743038886,-500.0,0.00016437,2]
[338576063,1726743038905,-500.0,0.00016437,2]
[338576066,1726743038916,-437.64337071,0.00016437,2]
[338576068,1726743038925,-500.0,0.00016437,2]
[338576070,1726743038934,-500.0,0.00016437,2]
[338576072,1726743038943,-500.0,0.00016437,2]
[338576073,1726743038952,-500.0,0.00016437,2]
[338576075,1726743038962,-500.0,0.00016437,2]
[338576077,1726743038971,-500.0,0.00016437,2]
[338576079,1726743038981,-500.0,0.00016437,2]
[338576082,1726743038990,-500.0,0.00016437,2]
[338576084,1726743039000,-500.0,0.00016437,2]
[338576086,1726743039009,-500.0,0.00016437,2]
[338576087,1726743039019,-500.0,0.00016437,2]
[338576090,1726743039028,-500.0,0.00016437,2]
[338576092,1726743039037,-500.0,0.00016437,2]
[338576094,1726743039047,-500.0,0.00016437,2]
[338576096,1726743039060,-500.0,0.00016437,2]
[338576098,1726743039069,-500.0,0.00016437,2]
[338576100,1726743039079,-500.0,0.00016437,2]
[338576102,1726743039088,-500.0,0.00016437,2]
[338576104,1726743039098,-500.0,0.00016437,2]
[338576106,1726743039108,-249.59994524,0.00016437,2]
[338576108,1726743039117,-500.0,0.00016437,2]
[338576110,1726743039126,-500.0,0.00016437,2]
[338576112,1726743039136,-300.0,0.00016437,2]
[338576114,1726743039146,-500.0,0.00016437,2]
[338576116,1726743039155,-500.0,0.00016437,2]
[338576118,1726743039166,-500.0,0.00016437,2]
[338576120,1726743039175,-300.0,0.00016437,2]
[338576122,1726743039185,-160.0,0.00016437,2]
[338576124,1726743039195,-169.32771625,0.00016438,2]
[338576126,1726743039205,-500.0,0.00016438,2]
[338576128,1726743039214,-500.0,0.00016438,2]
[338576130,1726743039223,-500.0,0.00016438,2]
[338576132,1726743039233,-506.13118977,0.00016438,2]
[338576134,1726743039242,-500.0,0.00016438,2]
[338576136,1726743039252,-500.0,0.00016438,2]
[338576138,1726743039261,-500.0,0.00016438,2]
[338576140,1726743039270,-500.0,0.00016438,2]
[338576142,1726743039279,-500.0,0.00016438,2]
[338576144,1726743039289,-523.41655012,0.00016438,2]
[338576146,1726743039298,-500.0,0.00016438,2]
[338576148,1726743039310,-500.0,0.00016438,2]
[338576150,1726743039320,-500.0,0.00016438,2]
[338576151,1726743039330,-500.0,0.00016438,2]
[338576153,1726743039339,-500.0,0.00016438,2]
[338576155,1726743039350,-500.29991761,0.00016438,2]
[338576157,1726743039359,-500.0,0.00016438,2]
[338576159,1726743039369,-1497.56,0.00016438,2]
[338576161,1726743039378,-500.0,0.00016438,2]
[338576163,1726743039388,-500.0,0.00016438,2]
[338576164,1726743039397,-500.0,0.00016438,2]
[338576166,1726743039407,-500.0,0.00016438,2]
[338576168,1726743039416,-500.0,0.00016438,2]
[338576170,1726743039426,-500.0,0.00016438,2]
[338576172,1726743039436,-882.86,0.00016438,2]
[338576174,1726743039445,-500.0,0.00016438,2]
[338576176,1726743039454,-500.0,0.00016438,2]
[338576177,1726743039464,-1058.44,0.00016438,2]
[338576179,1726743039474,-703.26,0.00016438,2]
[338576181,1726743039483,-592.77,0.00016438,2]
[338576183,1726743039493,-1619.33,0.00016438,2]
[338576184,1726743039502,-500.0,0.00016438,2]
[338576185,1726743039512,-500.0,0.00016438,2]
[338576186,1726743039528,-500.0,0.00016438,2]
[338576187,1726743039538,-1472.02,0.00016438,2]
[338576189,1726743039548,-500.0,0.00016438,2]
[338576190,1726743039558,-500.0,0.00016438,2]
[338576191,1726743039568,-500.0,0.00016438,2]
[338576192,1726743039578,-500.0,0.00016438,2]
[338576194,1726743039588,-500.0,0.00016438,2]
[338576195,1726743039598,-500.0,0.00016438,2]
[338576197,1726743039608,-500.0,0.00016438,2]
[338576199,1726743039618,-603.8,0.00016438,2]
[338576201,1726743039628,-500.0,0.00016438,2]
[338576202,1726743039637,-500.0,0.00016438,2]
[338576203,1726743039647,-569.56190587,0.00016438,2]
[338576204,1726743039657,-500.0,0.00016438,2]
[338576206,1726743039667,-867.9,0.00016438,2]
[338576208,1726743039679,-500.0,0.00016438,2]
[338576210,1726743039690,-500.0,0.00016438,2]
[338576212,1726743039701,-583.1153585,0.00016438,2]
[338576214,1726743039710,-500.0,0.00016438,2]
[338576216,1726743039722,-178.9865301,0.00016438,2]
[338576218,1726743039732,-500.0,0.00016438,2]
[338576219,1726743039742,-500.0,0.00016438,2]
[338576221,1726743039752,-500.0,0.00016438,2]
[338576223,1726743039764,-500.0,0.00016438,2]
[338576225,1726743039775,-500.0,0.00016438,2]
[338576226,1726743039785,-875.26,0.00016438,2]
[338576227,1726743039795,-500.0,0.00016438,2]
[338576229,1726743039807,-500.0,0.00016438,2]
[338576230,1726743039817,-500.0,0.00016438,2]
[338576231,1726743039826,-500.0,0.00016438,2]
[338576232,1726743039836,-500.0,0.00016438,2]
[338576233,1726743039845,-500.0,0.00016438,2]
[338576235,1726743039855,-534.12,0.00016438,2]
[338576237,1726743039864,-500.0,0.00016438,2]
[338576238,1726743039876,-500.0,0.00016438,2]
[338576240,1726743039886,-500.0,0.00016438,2]
[338576241,1726743039896,-500.0,0.00016438,2]
[338576243,1726743039906,-500.0,0.00016438,2]
[338576244,1726743039916,-500.0,0.00016438,2]
[338576245,1726743039926,-500.0,0.00016438,2]
[338576246,1726743039936,-214.97556302,0.00016438,2]
[338576248,1726743039946,-928.02,0.00016438,2]
[338576249,1726743039956,-213.97306972,0.00016438,2]
[338576250,1726743039965,-500.0,0.00016438,2]
[338576251,1726743039975,-822.46,0.00016438,2]
[338576252,1726743039985,-500.0,0.00016438,2]
[338576253,1726743039996,-1664.29,0.00016438,2]
[338576254,1726743040006,-714.76,0.00016438,2]
[338576255,1726743040016,-500.0,0.00016438,2]
[338576256,1726743040025,-500.0,0.00016438,2]
[338576257,1726743040035,-500.0,0.00016438,2]
[338576258,1726743040045,-500.0,0.00016438,2]
[338576259,1726743040055,-716.92,0.00016438,2]
[338576260,1726743040067,-500.0,0.00016438,2]
[338576261,1726743040077,-500.0,0.00016438,2]
[338576262,1726743040088,-383.39114892,0.00016438,2]
[338576263,1726743040097,-500.0,0.00016438,2]
[338576264,1726743040107,-852.26,0.00016438,2]
[338576265,1726743040116,-500.0,0.00016438,2]
[338576266,1726743040126,-500.0,0.00016438,2]
[338576267,1726743040140,-500.0,0.00016438,2]
[338576268,1726743040150,-933.71,0.00016438,2]
[338576269,1726743040160,-500.0,0.00016438,2]
[338576270,1726743040171,-500.0,0.00016438,2]
[338576271,1726743040181,-500.0,0.00016438,2]
[338576272,1726743040191,-500.0,0.00016438,2]
[338576273,1726743040201,-500.0,0.00016438,2]
[338576274,1726743040211,-500.0,0.00016438,2]
[338576275,1726743040221,-826.36,0.00016438,2]
[338576276,1726743040231,-500.0,0.00016438,2]
[338576277,1726743040241,-874.29,0.00016438,2]
[338576278,1726743040251,-500.0,0.00016438,2]
[338576279,1726743040261,-791.99,0.00016438,2]
[338576280,1726743040270,-500.0,0.00016438,2]
[338576281,1726743040280,-772.91,0.00016438,2]
[338576282,1726743040289,-500.0,0.00016438,2]
[338576283,1726743040299,-903.4,0.00016438,2]
[338576284,1726743040309,-500.0,0.00016438,2]
[338576285,1726743040320,-500.0,0.00016438,2]
[338576286,1726743040330,-500.0,0.00016438,2]
[338576287,1726743040340,-500.0,0.00016438,2]
[338576288,1726743040350,-500.0,0.00016438,2]
[338576289,1726743040360,-502.64744636,0.00016438,2]
[338576290,1726743040369,-815.1,0.00016438,2]
[338576291,1726743040379,-500.0,0.00016438,2]
[338576292,1726743040389,-621.76,0.00016438,2]
[338576293,1726743040398,-500.0,0.00016438,2]
[338576294,1726743040408,-500.0,0.00016438,2]
[338576295,1726743040418,-500.0,0.00016438,2]
[338576296,1726743040427,-628.35,0.00016438,2]
[338576297,1726743040437,-500.0,0.00016438,2]
[338576298,1726743040446,-500.0,0.00016438,2]
[338576299,1726743040456,-578.5,0.00016438,2]
[338576300,1726743040466,-500.0,0.00016438,2]
[338576301,1726743040476,-500.0,0.00016438,2]
[338576302,1726743040485,-500.0,0.00016438,2]
[338576303,1726743040495,-864.59,0.00016438,2]
[338576304,1726743040504,-1095.82,0.00016438,2]
[338576305,1726743040513,-500.0,0.00016438,2]
[338576306,1726743040523,-500.0,0.00016438,2]
[338576307,1726743040532,-500.0,0.00016438,2]
[338576308,1726743040541,-500.0,0.00016438,2]
[338576309,1726743040551,-500.0,0.00016438,2]
[338576310,1726743040562,-500.0,0.00016438,2]
[338576311,1726743040571,-710.51,0.00016438,2]
[338576312,1726743040581,-500.0,0.00016438,2]
[338576313,1726743040590,-500.0,0.00016438,2]
[338576314,1726743040600,-500.0,0.00016438,2]
[338576315,1726743040610,-500.0,0.00016438,2]
[338576316,1726743040620,-1189.06,0.00016438,2]
[338576317,1726743040630,-500.0,0.00016438,2]
[338576318,1726743040639,-948.94,0.00016438,2]
[338576319,1726743040649,-500.0,0.00016438,2]
[338576320,1726743040659,-500.0,0.00016438,2]
[338576321,1726743040669,-500.0,0.00016438,2]
[338576322,1726743040680,-587.46,0.00016438,2]
[338576323,1726743040692,-985.4,0.00016438,2]
[338576324,1726743040703,-468.8,0.00016438,2]
[338576325,1726743040712,-655.17,0.00016438,2]
[338576326,1726743040723,-500.0,0.00016438,2]
[338576327,1726743040732,-500.0,0.00016438,2]
[338576328,1726743040742,-294.00865326,0.00016438,2]
[338576329,1726743040751,-500.0,0.00016438,2]
[338576330,1726743040762,-500.0,0.00016438,2]
[338576331,1726743040771,-504.63365965,0.00016438,2]
[338576332,1726743040781,-500.0,0.00016438,2]
[338576333,1726743040790,-500.0,0.00016438,2]
[338576334,1726743040799,-500.0,0.00016438,2]
[338576335,1726743040810,-500.0,0.00016438,2]
[338576336,1726743040820,-554.26447383,0.00016438,2]
[338576337,1726743040830,-500.0,0.00016438,2]
[338576338,1726743040840,-500.0,0.00016438,2]
[338576339,1726743040850,-500.0,0.00016438,2]
[338576340,1726743040859,-500.0,0.00016438,2]
[338576341,1726743040869,-753.3,0.00016438,2]
[338576342,1726743040878,-500.0,0.00016438,2]
[338576343,1726743040887,-953.01,0.00016438,2]
[338576344,1726743040897,-500.0,0.00016438,2]
[338576345,1726743040907,-500.0,0.00016438,2]
[338576346,1726743040916,-500.0,0.00016438,2]
[338576347,1726743040926,-754.87,0.00016438,2]
[338576348,1726743040935,-500.81551372,0.00016438,2]
[338576349,1726743040944,-500.0,0.00016438,2]
[338576350,1726743040954,-500.0,0.00016438,2]
[338576351,1726743040963,-1372.54,0.00016438,2]
[338576352,1726743040973,-500.0,0.00016438,2]
[338576353,1726743040983,-534.93,0.00016438,2]
[338576354,1726743040992,-1211.99,0.00016438,2]
[338576355,1726743041002,-500.0,0.00016438,2]
[338576356,1726743041011,-1039.09,0.00016438,2]
[338576357,1726743041022,-500.0,0.00016438,2]
[338576358,1726743041041,-784.83,0.00016438,2]
[338576359,1726743041058,-500.0,0.00016438,2]
[338576360,1726743041068,-1880.57,0.00016438,2]
[338576361,1726743041077,-539.78,0.00016438,2]
[338576362,1726743041087,-500.0,0.00016438,2]
[338576363,1726743041097,-760.16,0.00016438,2]
[338576364,1726743041107,-1442.69,0.00016438,2]
[338576365,1726743041116,-500.0,0.00016438,2]
[338576366,1726743041126,-500.0,0.00016438,2]
[338576367,1726743041136,-1252.09,0.00016438,2]
[338576368,1726743041146,-500.0,0.00016438,2]
[338576369,1726743041155,-500.88986709,0.00016438,2]
[338576370,1726743041165,-907.17,0.00016438,2]
[338576371,1726743041175,-500.0,0.00016438,2]
[338576372,1726743041185,-500.0,0.00016438,2]
[338576373,1726743041194,-500.0,0.00016438,2]
[338576374,1726743041205,-751.2,0.00016438,2]
[338576375,1726743041215,-500.0,0.00016438,2]
[338576376,1726743041225,-500.0,0.00016438,2]
[338576377,1726743041235,-500.0,0.00016438,2]
[338576378,1726743041246,-500.0,0.00016438,2]
[338576379,1726743041256,-500.0,0.00016438,2]
[338576380,1726743041266,-500.0,0.00016438,2]
[338576381,1726743041276,-500.0,0.00016438,2]
[338576382,1726743041285,-500.0,0.00016438,2]
[338576383,1726743041295,-500.0,0.00016438,2]
[338576384,1726743041304,-500.0,0.00016438,2]
[338576385,1726743041315,-500.0,0.00016438,2]
[338576386,1726743041325,-500.0,0.00016438,2]
[338576387,1726743041335,-500.0,0.00016438,2]
[338576388,1726743041344,-235.52800243,0.00016438,2]
[338576389,1726743041354,-500.0,0.00016438,2]
[338576390,1726743041365,-1276.97,0.00016438,2]
[338576391,1726743041374,-500.0,0.00016438,2]
[338576392,1726743041384,-1333.0,0.00016438,2]
[338576393,1726743041393,-500.0,0.00016438,2]
[338576394,1726743041403,-500.0,0.00016438,2]
[338576395,1726743041412,-500.0,0.00016438,2]
[338576396,1726743041422,-500.0,0.00016438,2]
[338576397,1726743041432,-500.0,0.00016438,2]
[338576398,1726743041442,-514.49,0.00016438,2]
[338576399,1726743041451,-764.77,0.00016438,2]
[338576400,1726743041461,-511.04457724,0.00016438,2]
[338576401,1726743041675,-399.18542276,0.00016438,2]
[338576402,1726743041689,-500.0,0.00016438,2]
[338576403,1726743041699,-1633.04,0.00016438,2]
[338576404,1726743041709,-500.0,0.00016438,2]
[338576405,1726743041719,-2398.62,0.00016438,2]
[338576406,1726743041730,-500.0,0.00016438,2]
[338576407,1726743041740,-1957.49,0.00016438,2]
[338576408,1726743041976,-1420.23,0.00016438,2]
[338576409,1726743041997,-724.59,0.00016438,2]
[338576410,1726743042007,-500.0,0.00016438,2]
[338576411,1726743042017,-500.0,0.00016438,2]
[338576412,1726743042027,-500.0,0.00016438,2]
[338576413,1726743042040,-500.0,0.00016438,2]
[338576414,1726743042050,-488.34603284,0.00016438,2]
[338576415,1726743042064,-336.18396716,0.00016438,2]
[338576416,1726743042075,-952.47,0.00016438,2]
[338576417,1726743042086,-500.86953137,0.00016438,2]
[338576418,1726743042096,-775.29,0.00016438,2]
[338576419,1726743042107,-500.0,0.00016438,2]
[338576420,1726743042117,-574.44,0.00016438,2]
[338576421,1726743042127,-854.52,0.00016438,2]
[338576422,1726743042138,-500.0,0.00016438,2]
[338576423,1726743042149,-500.0,0.00016438,2]
[338576424,1726743042159,-500.0,0.00016438,2]
[338576425,1726743042170,-500.0,0.00016438,2]
[338576426,1726743042179,-500.0,0.00016438,2]